fUSD/lending_fUSD_20240920
["ID","MTS","AMOUNT","RATE_DAILY","PERIOD"]
[338660544,1726857043487,-18386.04645497,0.0001268,2]
[338660547,1726857043498,-15036.90740801,0.0001268,2]
[338660549,1726857043509,-548.79774281,0.0001268,2]
[338660559,1726857043602,-973.89995161,0.0001268,2]
[338660561,1726857043611,-514498.50065192,0.00013,2]
[338660569,1726857043684,-730.07140233,0.00013,2]
[338660571,1726857043695,-652.62529538,0.00013,2]
[338660814,1726857046269,-19148.27129954,0.00013,2]
[338660816,1726857046282,-3145.66036694,0.00013,2]
[338660818,1726857046293,-812.74759037,0.00013,2]
[338660821,1726857046306,-6259.889284,0.00013,2]
[338660823,1726857046317,-7811.78430333,0.00013,2]
[338660829,1726857046367,-1874.06416438,0.00013,2]
[338660831,1726857046380,-2610.19070253,0.00013,2]
[338660839,1726857046447,-734.01641473,0.00013,2]
[338660841,1726857046458,-603.28558204,0.00013,2]
[338660844,1726857046471,-588.94,0.00013,2]
[338660846,1726857046489,-3929.113636,0.00013,2]
[338660851,1726857046527,-743.3523116,0.00013,2]
[338660853,1726857046537,-943.31862009,0.00013,2]
[338660855,1726857046548,-1996.88135758,0.00013,2]
[338660857,1726857046559,-635.39287192,0.00013,2]
[338661044,1726857099075,500.0,0.00011164,2]
[338661045,1726857119241,500.0,0.00011164,2]
[338661047,1726857173954,247.84794212,0.00022999,120]
[338661048,1726857189176,500.0,0.00012,2]
[338661049,1726857190431,500.0,0.00012,2]
[338661050,1726857191196,505.08,0.00012,2]
[338661051,1726857204114,500.0,0.00011164,2]
[338661052,1726857211083,500.0,0.00011164,2]
[338661053,1726857239963,335.4,0.00010153,2]
[338661054,1726857248667,-174.37,0.0001206,2]
[338661055,1726857248688,-356.65752764,0.00012371,2]
[338661056,1726857248709,-325.96,0.00012371,2]
[338661057,1726857248730,-335.4,0.00012417,2]
[338661058,1726857248749,-152.23,0.00012471,2]
[338661059,1726857248770,-514.9049,0.0001258,2]
[338661060,1726857248790,-150.0,0.00012679,2]
[338661061,1726857248809,-300.0,0.00012679,2]
[338661062,1726857248828,-1079.3456,0.0001268,2]
[338661063,1726857248848,-748.13197236,0.0001268,2]
[338661064,1726857257017,500.0,0.00012,2]
[338661065,1726857257766,327.83,0.00012,2]
[338661066,1726857307987,500.0,0.00012,2]
[338661067,1726857309156,500.0,0.00012,2]
[338661068,1726857309910,500.0,0.00012,2]
[338661069,1726857310667,500.0,0.00012,2]
[338661070,1726857311432,500.0,0.00012,2]
[338661071,1726857312183,325.3,0.00012,2]
[338661072,1726857362180,250.0,0.00011714,2]
[338661073,1726857367115,487.62,0.00011714,2]
[338661074,1726857385951,284.15,0.00011713,2]
[338661075,1726857395052,250.0,0.00011713,2]
[338661076,1726857465305,169.14,0.00010959,2]
[338661077,1726857465563,200.0,0.00011705,2]
[338661078,1726857521815,500.0,0.00022999,120]
[338661079,1726857522183,415.94,0.00022999,120]
[338661080,1726857570022,158.357077,0.00022,60]
[338661081,1726857570318,158.357077,0.00022,60]
[338661082,1726857628041,500.0,0.00022999,120]
[338661083,1726857678638,183.00821368,0.00012011,2]
[338661084,1726857763343,150.3,0.00012027,2]
[338661085,1726857771538,227.28,0.00011727,2]
[338661086,1726857826841,320.31,9.831e-05,2]
[338661087,1726857898346,157.04,0.00011924,2]
[338661088,1726857898579,157.04,0.00011928,2]
[338661089,1726857898804,157.04,0.00011932,2]
[338661090,1726857899043,157.04,0.00011936,2]
[338661091,1726857899309,157.04,0.0001194,2]
[338661092,1726857899572,157.04,0.00011944,2]
[338661093,1726857899786,157.04,0.00011948,2]
[338661094,1726857899993,157.04,0.00011952,2]
[338661095,1726857900214,157.04,0.00011956,2]
[338661096,1726857900422,157.04,0.0001196,2]
[338661097,1726857900638,157.04,0.00011964,2]
[338661098,1726857900867,157.04,0.00011968,2]
[338661099,1726857901072,157.04,0.00011972,2]
[338661100,1726857901296,157.04,0.00011976,2]
[338661101,1726857901522,157.04,0.0001198,2]
[338661102,1726857901792,157.04,0.00011984,2]
[338661104,1726857987357,500.0,0.00022999,120]
[338661107,1726858070572,250.0,0.00011986,2]
[338661108,1726858171364,1500.0,0.00011986,2]
[338661109,1726858194779,1000.0,0.00011986,2]
[338661113,1726858209029,1050.0,0.00011,2]
[338661117,1726858231429,-320.31,0.00012095,2]
[338661119,1726858231440,-1452.94,0.00012131,2]
[338661120,1726858231450,-2462.79192693,0.00012679,2]
[338661121,1726858231459,-300.0,0.00012679,2]
[338661122,1726858231469,-35080.78942764,0.0001268,2]
[338661123,1726858231479,-983.97365189,0.000128,2]
[338661124,1726858231488,-10457.35008216,0.00012886,2]
[338661125,1726858231497,-150.0,0.00012895,2]
[338661126,1726858231507,-6243.2312,0.00012896,2]
[338661127,1726858231516,-1915.15,0.00012896,2]
[338661128,1726858231525,-500.0,0.00012896,2]
[338661129,1726858231535,-200.0,0.00012896,2]
[338661130,1726858231544,-2851.4571,0.000129,2]
[338661131,1726858231553,-3206.3829,0.000129,2]
[338661132,1726858231562,-2336.77,0.000129,2]
[338661133,1726858231572,-499.99,0.000129,2]
[338661134,1726858231581,-65914.5755,0.000129,2]
[338661135,1726858231590,-150.0,0.000129,2]
[338661136,1726858231599,-266.393,0.000129,2]
[338661137,1726858231609,-6158.07217612,0.000129,5]
[338661138,1726858231618,-170.50854913,0.000129,2]
[338661139,1726858231627,-150.99,0.000129,2]
[338661140,1726858231636,-174.28,0.000129,2]
[338661141,1726858231645,-584.43903367,0.000129,2]
[338661142,1726858231654,-328.44532766,0.000129,2]
[338661143,1726858231663,-1606.81400684,0.000129,2]
[338661144,1726858231673,-692.811,0.00012937,2]
[338661145,1726858231682,-170.214,0.00012937,2]
[338661146,1726858231690,-500.0,0.00012956,2]
[338661147,1726858231699,-381.22,0.00012964,2]
[338661148,1726858231709,-500.0,0.00012965,2]
[338661149,1726858231718,-160.35568771,0.00012973,2]
[338661150,1726858231726,-159.21059266,0.00012973,2]
[338661152,1726858231735,-158.85892903,0.00012973,2]
[338661153,1726858231745,-500.0,0.00012973,2]
[338661155,1726858231753,-500.0,0.00012973,2]
[338661157,1726858231763,-500.0,0.00012973,2]
[338661159,1726858231772,-500.0,0.00012974,2]
[338661162,1726858231781,-500.0,0.00012982,2]
[338661163,1726858231790,-100193.0,0.00012986,2]
[338661166,1726858231800,-582.0,0.00012986,2]
[338661167,1726858231809,-1000.0,0.00012986,2]
[338661169,1726858231818,-150.27,0.0001299,2]
[338661171,1726858231827,-150.27,0.0001299,2]
[338661173,1726858231836,-150.27,0.0001299,2]
[338661175,1726858231846,-150.27,0.0001299,2]
[338661177,1726858231854,-150.27,0.0001299,2]
[338661179,1726858231864,-150.27,0.0001299,2]
[338661181,1726858231873,-150.27,0.0001299,2]
[338661183,1726858231882,-150.27,0.0001299,2]
[338661185,1726858231891,-150.27,0.0001299,2]
[338661187,1726858231899,-150.27,0.0001299,2]
[338661189,1726858231908,-150.27,0.0001299,2]
[338661191,1726858231919,-150.27,0.0001299,2]
[338661194,1726858231937,-150.27,0.0001299,2]
[338661196,1726858231946,-150.27,0.0001299,2]
[338661198,1726858231955,-150.27,0.0001299,2]
[338661200,1726858231964,-150.27,0.0001299,2]
[338661202,1726858231974,-150.27,0.0001299,2]
[338661204,1726858231983,-150.27,0.0001299,2]
[338661206,1726858231992,-150.27,0.0001299,2]
[338661208,1726858232003,-150.27,0.0001299,2]
[338661210,1726858232012,-150.27,0.0001299,2]
[338661212,1726858232021,-150.27,0.0001299,2]
[338661214,1726858232030,-150.27,0.0001299,2]
[338661216,1726858232039,-150.27,0.0001299,2]
[338661217,1726858232047,-150.27,0.0001299,2]
[338661219,1726858232056,-150.27,0.0001299,2]
[338661221,1726858232065,-150.27,0.0001299,2]
[338661223,1726858232075,-150.27,0.0001299,2]
[338661226,1726858232088,-150.27,0.0001299,2]
[338661228,1726858232097,-150.27,0.0001299,2]
[338661229,1726858232105,-150.27,0.0001299,2]
[338661231,1726858232114,-150.27,0.0001299,2]
[338661234,1726858232124,-150.27,0.0001299,2]
[338661236,1726858232134,-150.27,0.0001299,2]
[338661238,1726858232144,-150.27,0.0001299,2]
[338661240,1726858232153,-150.27,0.0001299,2]
[338661242,1726858232162,-500.0,0.00012991,2]
[338661244,1726858232173,-10194.71186,0.00012996,2]
[338661246,1726858232182,-65935.4394516,0.00012996,2]
[338661248,1726858232191,-29910.3267546,0.00012996,2]
[338661250,1726858232201,-502.74892705,0.00012999,2]
[338661252,1726858232209,-500.0,0.00012999,2]
[338661254,1726858232219,-250.3931407,0.00012999,2]
[338661256,1726858232228,-4326.74815113,0.00012999,2]
[338661258,1726858232237,-2000.0,0.00012999,2]
[338661259,1726858232246,-1518.2085374,0.00013,2]
[338661261,1726858232255,-659.16927993,0.00013,2]
[338661263,1726858232264,-65433.82987813,0.00013,2]
[338661265,1726858232274,-1449605.74497472,0.00013,2]
[338661267,1726858232283,-197592.32195292,0.00013,2]
[338661269,1726858232296,-7444.75759163,0.00013,2]
[338661272,1726858232311,-2519.95441177,0.00013,2]
[338661275,1726858232333,-575.98332999,0.00013,2]
[338661277,1726858232344,-11646.55036155,0.00013,2]
[338661280,1726858232356,-582.41,0.00013,2]
[338661296,1726858237693,-1000.0,0.00012886,2]
[338661297,1726858237702,-196.13321366,0.00012896,2]
[338661298,1726858237711,-7755.98433207,0.00013,2]
[338661299,1726858237723,-1559.36045752,0.00013,2]
[338661300,1726858237734,-1820.05173602,0.00013,2]
[338661301,1726858237745,-303.35,0.00013,2]
[338661302,1726858237756,-44757.15382601,0.00013,2]
[338661303,1726858237767,-606344.38671688,0.00013,2]
[338661304,1726858237776,-614913.47047273,0.00013,2]
[338661305,1726858237785,-204.0,0.00013,2]
[338661306,1726858237795,-204.0,0.00013,2]
[338661307,1726858237804,-204.0,0.00013,2]
[338661308,1726858237813,-204.0,0.00013,2]
[338661309,1726858237822,-204.0,0.00013,2]
[338661310,1726858237831,-204.0,0.00013,2]
[338661311,1726858237841,-204.0,0.00013,2]
[338661312,1726858237850,-204.0,0.00013,2]
[338661313,1726858237859,-204.0,0.00013,2]
[338661314,1726858237868,-204.0,0.00013,2]
[338661315,1726858237877,-204.0,0.00013,2]
[338661316,1726858237886,-199.0,0.00013,2]
[338661317,1726858237896,-210.0,0.00013,2]
[338661318,1726858237906,-210.0,0.00013,2]
[338661319,1726858237915,-210.0,0.00013,2]
[338661320,1726858237926,-210.0,0.00013,2]
[338661321,1726858237936,-210.0,0.00013,2]
[338661323,1726858237945,-210.0,0.00013,2]
[338661324,1726858237954,-210.0,0.00013,2]
[338661325,1726858237964,-210.0,0.00013,2]
[338661326,1726858237973,-210.0,0.00013,2]
[338661327,1726858237982,-210.0,0.00013,2]
[338661328,1726858237992,-210.0,0.00013,2]
[338661329,1726858238002,-739145.05243265,0.00013,2]
[338661330,1726858238014,-31402.0,0.00013,2]
[338661331,1726858238029,-530469.89715833,0.00013,2]
[338661332,1726858238039,-151.0,0.00013,2]
[338661333,1726858238048,-151.0,0.00013,2]
[338661335,1726858238057,-151.0,0.00013,2]
[338661337,1726858238067,-151.0,0.00013,2]
[338661339,1726858238076,-187780.86139821,0.00013,2]
[338661341,1726858238084,-1701.09975992,0.00013,2]
[338661343,1726858238093,-1000.0,0.00013,2]
[338661344,1726858238102,-1000.0,0.00013,2]
[338661346,1726858238112,-1000.0,0.00013,2]
[338661348,1726858238121,-1000.0,0.00013,2]
[338661370,1726858238324,-1000.0,0.00013,2]
[338661372,1726858238334,-1000.0,0.00013,2]
[338661374,1726858238344,-1000.0,0.00013,2]
[338661376,1726858238354,-1000.0,0.00013,2]
[338661379,1726858238363,-1000.0,0.00013,2]
[338661380,1726858238373,-1000.0,0.00013,2]
[338661382,1726858238382,-189.51948389,0.00013,2]
[338661384,1726858238394,-205.0,0.00013,2]
[338661386,1726858238402,-151.0,0.00013,2]
[338661388,1726858238412,-151.0,0.00013,2]
[338661390,1726858238421,-151.0,0.00013,2]
[338661392,1726858238433,-151.0,0.00013,2]
[338661394,1726858238442,-152.868638,0.00013,2]
[338661396,1726858238451,-332.74942815,0.00013,2]
[338661398,1726858238461,-412.239601,0.00013,2]
[338661400,1726858238470,-412.239601,0.00013,2]
[338661402,1726858238479,-412.239601,0.00013,2]
[338661404,1726858238488,-412.239601,0.00013,2]
[338661406,1726858238498,-412.239601,0.00013,2]
[338661408,1726858238507,-412.239601,0.00013,2]
[338661410,1726858238516,-199.0,0.00013,2]
[338661412,1726858238526,-199.0,0.00013,2]
[338661413,1726858238535,-199.0,0.00013,2]
[338661415,1726858238544,-214.42,0.00013,2]
[338661417,1726858238554,-214.42,0.00013,2]
[338661419,1726858238563,-214.42,0.00013,2]
[338661421,1726858238572,-214.42,0.00013,2]
[338661423,1726858238581,-214.42,0.00013,2]
[338661425,1726858238591,-214.42,0.00013,2]
[338661427,1726858238600,-151.0,0.00013,2]
[338661429,1726858238610,-151.0,0.00013,2]
[338661431,1726858238619,-151.0,0.00013,2]
[338661433,1726858238628,-151.0,0.00013,2]
[338661434,1726858238637,-151.0,0.00013,2]
[338661435,1726858238646,-151.0,0.00013,2]
[338661436,1726858238655,-456.16248,0.00013,2]
[338661437,1726858238664,-456.16248,0.00013,2]
[338661438,1726858238674,-456.16248,0.00013,2]
[338661439,1726858238684,-456.16248,0.00013,2]
[338661440,1726858238693,-456.16248,0.00013,2]
[338661441,1726858238702,-456.16248,0.00013,2]
[338661442,1726858238711,-151.0,0.00013,2]
[338661443,1726858238721,-151.0,0.00013,2]
[338661444,1726858238730,-151.0,0.00013,2]
[338661445,1726858238739,-151.0,0.00013,2]
[338661446,1726858238748,-166.770715,0.00013,2]
[338661447,1726858238758,-166.770715,0.00013,2]
[338661448,1726858238767,-166.770715,0.00013,2]
[338661449,1726858238777,-166.770715,0.00013,2]
[338661450,1726858238786,-500.0,0.00013,2]
[338661451,1726858238795,-151.0,0.00013,2]
[338661452,1726858238804,-151.0,0.00013,2]
[338661454,1726858238813,-161.556026,0.00013,2]
[338661456,1726858238822,-151.0,0.00013,2]
[338661458,1726858238831,-151.0,0.00013,2]
[338661460,1726858238840,-585.11027,0.00013,2]
[338661462,1726858238849,-585.11027,0.00013,2]
[338661464,1726858238858,-151.0,0.00013,2]
[338661466,1726858238867,-151.0,0.00013,2]
[338661468,1726858238876,-151.0,0.00013,2]
[338661470,1726858238885,-151.0,0.00013,2]
[338661472,1726858238894,-2155034.98734735,0.00013,2]
[338661534,1726858239483,-2084.50094182,0.00013,2]
[338661539,1726858239496,-1115.8837229,0.00013,2]
[338661553,1726858239632,-1128.25200002,0.00013,2]
[338661556,1726858239643,-4805.22272247,0.00013,2]
[338661558,1726858239654,-3238.45120818,0.00013,2]
[338661841,1726858242576,-388.005,0.0001235,2]
[338661851,1726858242657,-1777.37864963,0.0001235,2]
[338661852,1726858242667,-1387921.17772861,0.00013,2]
[338661855,1726858242676,-151.0,0.00013,2]
[338661857,1726858242690,-151.0,0.00013,2]
[338661858,1726858242699,-407.305873,0.00013,2]
[338661860,1726858242708,-407.305873,0.00013,2]
[338661862,1726858242718,-151.0,0.00013,2]
[338661864,1726858242727,-177.226218,0.00013,2]
[338661866,1726858242738,-221.89778,0.00013,2]
[338661868,1726858242748,-221.89778,0.00013,2]
[338661870,1726858242757,-221.89778,0.00013,2]
[338661872,1726858242767,-221.89778,0.00013,2]
[338661874,1726858242776,-151.0,0.00013,2]
[338661876,1726858242786,-151.0,0.00013,2]
[338661878,1726858242795,-151.0,0.00013,2]
[338661880,1726858242804,-151.0,0.00013,2]
[338661882,1726858242814,-151.0,0.00013,2]
[338661884,1726858242823,-151.0,0.00013,2]
[338661886,1726858242833,-151.0,0.00013,2]
[338661888,1726858242843,-151.0,0.00013,2]
[338661890,1726858242852,-151.0,0.00013,2]
[338661892,1726858242861,-151.0,0.00013,2]
[338661894,1726858242871,-151.0,0.00013,2]
[338661896,1726858242880,-490127.80841288,0.00013,2]
[338661898,1726858242890,-151.0,0.00013,2]
[338661900,1726858242899,-151.0,0.00013,2]
[338661902,1726858242909,-151.0,0.00013,2]
[338661903,1726858242918,-151.0,0.00013,2]
[338661905,1726858242927,-151.0,0.00013,2]
[338661907,1726858242937,-151.0,0.00013,2]
[338661910,1726858242947,-151.0,0.00013,2]
[338661913,1726858242956,-151.0,0.00013,2]
[338661916,1726858242964,-151.0,0.00013,2]
[338661918,1726858242973,-151.0,0.00013,2]
[338661920,1726858242982,-151.0,0.00013,2]
[338661922,1726858242991,-152.21105,0.00013,2]
[338661925,1726858243000,-459.158161,0.00013,2]
[338661928,1726858243009,-459.158161,0.00013,2]
[338661931,1726858243019,-459.158161,0.00013,2]
[338661934,1726858243029,-459.158161,0.00013,2]
[338661937,1726858243038,-459.158161,0.00013,2]
[338661940,1726858243047,-459.158161,0.00013,2]
[338661942,1726858243056,-459.158161,0.00013,2]
[338661944,1726858243066,-459.158161,0.00013,2]
[338661948,1726858243076,-459.158161,0.00013,2]
[338661951,1726858243085,-459.158161,0.00013,2]
[338661953,1726858243094,-151.0,0.00013,2]
[338661955,1726858243103,-151.0,0.00013,2]
[338661957,1726858243113,-151.0,0.00013,2]
[338661959,1726858243122,-151.0,0.00013,2]
[338661961,1726858243132,-151.0,0.00013,2]
[338661963,1726858243142,-151.0,0.00013,2]
[338661965,1726858243152,-151.0,0.00013,2]
[338661967,1726858243162,-151.0,0.00013,2]
[338661969,1726858243171,-151.0,0.00013,2]
[338661971,1726858243181,-151.0,0.00013,2]
[338661973,1726858243190,-151.0,0.00013,2]
[338661975,1726858243201,-151.0,0.00013,2]
[338661977,1726858243211,-151.0,0.00013,2]
[338661979,1726858243221,-151.0,0.00013,2]
[338661981,1726858243231,-151.0,0.00013,2]
[338661983,1726858243240,-151.0,0.00013,2]
[338661985,1726858243250,-151.0,0.00013,2]
[338661986,1726858243259,-151.0,0.00013,2]
[338661988,1726858243269,-151.0,0.00013,2]
[338661990,1726858243278,-151.0,0.00013,2]
[338661992,1726858243288,-151.0,0.00013,2]
[338661994,1726858243298,-151.0,0.00013,2]
[338661995,1726858243309,-151.0,0.00013,2]
[338661997,1726858243320,-151.0,0.00013,2]
[338661998,1726858243330,-151.0,0.00013,2]
[338661999,1726858243340,-151.0,0.00013,2]
[338662000,1726858243352,-151.0,0.00013,2]
[338662001,1726858243362,-151.0,0.00013,2]
[338662002,1726858243372,-244.91981,0.00013,2]
[338662003,1726858243384,-151.0,0.00013,2]
[338662005,1726858243394,-151.0,0.00013,2]
[338662006,1726858243403,-151.0,0.00013,2]
[338662008,1726858243414,-151.0,0.00013,2]
[338662009,1726858243423,-151.0,0.00013,2]
[338662011,1726858243436,-151.0,0.00013,2]
[338662013,1726858243446,-151.0,0.00013,2]
[338662014,1726858243457,-151.0,0.00013,2]
[338662017,1726858243467,-151.0,0.00013,2]
[338662018,1726858243477,-151.0,0.00013,2]
[338662020,1726858243487,-151.0,0.00013,2]
[338662022,1726858243496,-151.0,0.00013,2]
[338662024,1726858243506,-215.260413,0.00013,2]
[338662026,1726858243516,-215.260413,0.00013,2]
[338662028,1726858243526,-215.260413,0.00013,2]
[338662030,1726858243535,-215.260413,0.00013,2]
[338662032,1726858243544,-215.260413,0.00013,2]
[338662034,1726858243554,-215.260413,0.00013,2]
[338662036,1726858243563,-215.260413,0.00013,2]
[338662038,1726858243573,-215.260413,0.00013,2]
[338662040,1726858243582,-215.260413,0.00013,2]
[338662042,1726858243592,-215.260413,0.00013,2]
[338662044,1726858243601,-183.167647,0.00013,2]
[338662046,1726858243610,-183.167647,0.00013,2]
[338662047,1726858243620,-183.167647,0.00013,2]
[338662049,1726858243629,-183.167647,0.00013,2]
[338662051,1726858243638,-151.0,0.00013,2]
[338662053,1726858243647,-151.0,0.00013,2]
[338662055,1726858243657,-151.0,0.00013,2]
[338662057,1726858243666,-151.0,0.00013,2]
[338662059,1726858243675,-151.0,0.00013,2]
[338662061,1726858243686,-151.0,0.00013,2]
[338662063,1726858243695,-151.0,0.00013,2]
[338662065,1726858243704,-151.0,0.00013,2]
[338662067,1726858243714,-154.992102,0.00013,2]
[338662069,1726858243723,-155.523686,0.00013,2]
[338662071,1726858243732,-155.523686,0.00013,2]
[338662072,1726858243741,-155.523686,0.00013,2]
[338662074,1726858243752,-151.0,0.00013,2]
[338662076,1726858243761,-151.0,0.00013,2]
[338662078,1726858243771,-155.706829,0.00013,2]
[338662081,1726858243781,-155.523686,0.00013,2]
[338662082,1726858243791,-155.706829,0.00013,2]
[338662084,1726858243800,-155.706829,0.00013,2]
[338662086,1726858243809,-155.523686,0.00013,2]
[338662088,1726858243819,-155.523686,0.00013,2]
[338662090,1726858243828,-500.0,0.00013,2]
[338662092,1726858243838,-155.706829,0.00013,2]
[338662094,1726858243847,-155.706829,0.00013,2]
[338662096,1726858243856,-155.706829,0.00013,2]
[338662098,1726858243865,-1264.59733,0.00013,2]
[338662099,1726858243874,-1264.59733,0.00013,2]
[338662101,1726858243884,-1264.59733,0.00013,2]
[338662103,1726858243894,-1264.59733,0.00013,2]
[338662105,1726858243904,-1264.59733,0.00013,2]
[338662107,1726858243914,-1264.59733,0.00013,2]
[338662109,1726858243923,-152.593933,0.00013,2]
[338662111,1726858243933,-151.0,0.00013,2]
[338662113,1726858243942,-151.0,0.00013,2]
[338662115,1726858243951,-151.0,0.00013,2]
[338662117,1726858243961,-437.441106,0.00013,2]
[338662119,1726858243970,-151.0,0.00013,2]
[338662121,1726858243979,-437.441106,0.00013,2]
[338662123,1726858243989,-437.441106,0.00013,2]
[338662125,1726858243998,-437.441106,0.00013,2]
[338662127,1726858244007,-437.441106,0.00013,2]
[338662129,1726858244016,-437.441106,0.00013,2]
[338662131,1726858244026,-151.0,0.00013,2]
[338662133,1726858244035,-151.0,0.00013,2]
[338662134,1726858244044,-151.0,0.00013,2]
[338662136,1726858244053,-151.0,0.00013,2]
[338662138,1726858244063,-151.0,0.00013,2]
[338662140,1726858244072,-151.0,0.00013,2]
[338662142,1726858244081,-251.58218,0.00013,2]
[338662144,1726858244090,-151.0,0.00013,2]
[338662146,1726858244099,-151.0,0.00013,2]
[338662148,1726858244108,-151.0,0.00013,2]
[338662150,1726858244117,-151.0,0.00013,2]
[338662151,1726858244126,-151.0,0.00013,2]
[338662153,1726858244135,-151.0,0.00013,2]
[338662155,1726858244144,-151.0,0.00013,2]
[338662157,1726858244154,-151.0,0.00013,2]
[338662159,1726858244163,-151.0,0.00013,2]
[338662161,1726858244172,-161.299436,0.00013,2]
[338662163,1726858244182,-161.299436,0.00013,2]
[338662165,1726858244191,-161.299436,0.00013,2]
[338662167,1726858244202,-1108.71,0.00013,2]
[338662169,1726858244211,-161.299436,0.00013,2]
[338662171,1726858244220,-161.299436,0.00013,2]
[338662173,1726858244230,-161.299436,0.00013,2]
[338662175,1726858244240,-797.583961,0.00013,2]
[338662177,1726858244249,-797.583961,0.00013,2]
[338662179,1726858244258,-797.583961,0.00013,2]
[338662181,1726858244267,-797.583961,0.00013,2]
[338662183,1726858244276,-797.583961,0.00013,2]
[338662185,1726858244287,-797.583961,0.00013,2]
[338662187,1726858244297,-151.0,0.00013,2]
[338662189,1726858244308,-151.0,0.00013,2]
[338662191,1726858244319,-151.0,0.00013,2]
[338662193,1726858244329,-151.0,0.00013,2]
[338662195,1726858244338,-151.0,0.00013,2]
[338662197,1726858244347,-151.0,0.00013,2]
[338662199,1726858244358,-151.0,0.00013,2]
[338662200,1726858244367,-151.0,0.00013,2]
[338662202,1726858244377,-151.0,0.00013,2]
[338662204,1726858244392,-151.0,0.00013,2]
[338662206,1726858244402,-455.727505,0.00013,2]
[338662208,1726858244412,-455.727505,0.00013,2]
[338662210,1726858244422,-455.727505,0.00013,2]
[338662212,1726858244435,-455.727505,0.00013,2]
[338662215,1726858244446,-455.727505,0.00013,2]
[338662217,1726858244457,-455.727505,0.00013,2]
[338662219,1726858244467,-151.0,0.00013,2]
[338662221,1726858244477,-151.0,0.00013,2]
[338662223,1726858244487,-151.0,0.00013,2]
[338662225,1726858244497,-158.357077,0.00013,2]
[338662227,1726858244507,-158.357077,0.00013,2]
[338662229,1726858244517,-623.501924,0.00013,2]
[338662231,1726858244528,-623.501924,0.00013,2]
[338662233,1726858244539,-623.501924,0.00013,2]
[338662235,1726858244550,-623.501924,0.00013,2]
[338662237,1726858244560,-623.501924,0.00013,2]
[338662239,1726858244571,-623.501924,0.00013,2]
[338662241,1726858244581,-399.410683,0.00013,2]
[338662243,1726858244591,-399.410683,0.00013,2]
[338662245,1726858244601,-399.410683,0.00013,2]
[338662247,1726858244612,-399.410683,0.00013,2]
[338662249,1726858244622,-399.410683,0.00013,2]
[338662251,1726858244633,-399.410683,0.00013,2]
[338662253,1726858244643,-151.0,0.00013,2]